bitfinex-derivatives/quotes_ETHF0:USTF0_20250830
["timestamp","ask_amount","ask_price","bid_price","bid_amount"]
[1756548840343,4.41352494,4399.1,4399.0,13.45446527]
[1756548840642,4.64084495,4399.1,4399.0,13.45446527]
[1756548840842,4.41352494,4399.1,4399.0,13.45446527]
[1756548841942,8.64352494,4399.1,4399.0,13.45446527]
[1756548842241,4.64352494,4399.1,4399.0,13.45446527]
[1756548853050,4.64352494,4399.1,4399.0,13.76046527]
[1756548853552,4.64352494,4399.1,4399.0,13.94696527]
[1756548858661,1.43572494,4399.1,4399.0,13.94696527]
[1756548858957,4.64352494,4399.1,4399.0,13.94696527]
[1756548860759,5.85879248,4399.1,4399.0,13.94696527]
[1756548860959,5.85879248,4399.1,4399.0,13.64096527]
[1756548861460,5.85879248,4399.1,4399.0,13.94696527]
[1756548862960,5.35949248,4399.1,4399.0,13.94696527]
[1756548863356,5.85779248,4399.1,4399.0,13.94696527]
[1756548864367,4.64252494,4399.1,4399.0,13.94696527]
[1756548866259,4.64252494,4399.1,4399.0,13.57730641]
[1756548868169,5.77114181,4399.1,4399.0,13.57730641]
[1756548868571,6.26944181,4399.1,4399.0,13.57730641]
[1756548868767,7.38764181,4399.1,4399.0,13.57730641]
[1756548871371,5.76072494,4399.1,4399.0,13.57730641]
[1756548873674,5.26242494,4399.1,4399.0,13.57730641]
[1756548874075,5.56062494,4399.1,4399.0,13.57730641]
[1756548875976,5.26242494,4399.1,4399.0,13.57730641]
[1756548876178,5.26242494,4399.1,4399.0,13.20765188]
[1756548876676,5.56062494,4399.1,4399.0,13.20765188]
[1756548876977,5.76072494,4399.1,4399.0,13.20765188]
[1756548880681,7.39821266,4399.1,4399.0,5.35819006]
[1756548881274,5.76072494,4399.1,4399.0,5.35819006]
[1756548881580,5.76072494,4399.1,4399.0,3.35819006]
[1756548882383,5.76072494,4399.1,4399.0,1.66679006]
[1756548882680,5.76072494,4399.1,4399.0,1.85329006]
[1756548883283,5.76072494,4399.1,4397.4,0.23]
[1756548883489,5.76072494,4399.1,4397.8,0.1827]
[1756548883490,3.2078,4397.9,4397.8,0.1827]
[1756548883778,3.96191383,4397.9,4397.8,0.1827]
[1756548883980,0.23,4397.9,4397.8,0.41008]
[1756548884882,0.23,4397.9,4397.8,0.1827]
[1756548885281,0.23,4397.9,4397.8,0.2969]
[1756548887375,3.9051,4397.9,4397.8,0.2969]
[1756548892187,3.9051,4397.9,4397.0,0.1142]
[1756548892188,0.2819,4397.8,4397.0,0.1142]
[1756548892386,0.2819,4397.6,4397.0,0.1142]
[1756548892592,0.4673,4397.6,4397.5,0.2969]
[1756548892791,0.6973,4397.6,4397.5,0.2969]
[1756548895898,1.22480183,4397.6,4397.5,0.2969]
[1756548903606,1.22480183,4397.6,4397.5,0.1827]
[1756548903802,0.94290183,4397.6,4396.9,0.1142]
[1756548904102,0.99480183,4397.5,4397.4,0.1827]
[1756548904304,0.99480183,4397.5,4397.4,0.2969]
[1756548907807,0.41330183,4397.5,4397.4,4.2969]
[1756548908106,0.1223,4398.1,4397.4,4.1827]
[1756548908306,0.1223,4398.1,4398.0,3.2078]
[1756548908808,0.2858,4398.8,4398.0,3.2078]
[1756548908809,0.486,4398.8,4398.0,3.43517]
[1756548909007,0.486,4398.8,4398.0,3.2078]
[1756548909209,0.486,4398.8,4398.1,0.22736]
[1756548909706,0.486,4398.8,4398.0,3.2078]
[1756548909906,0.486,4398.8,4398.1,0.22736]
[1756548910706,0.486,4398.8,4398.0,3.4388]
[1756548910907,0.486,4398.8,4398.0,3.66616]
[1756548911207,0.486,4398.7,4398.0,3.66616]
[1756548911707,0.486,4398.7,4398.0,3.4388]
[1756548912310,0.41330183,4398.6,4398.0,3.2078]
[1756548912713,0.97470183,4398.6,4398.0,3.2078]
[1756548912907,0.1302,4398.6,4398.0,3.2078]
[1756548920007,1.22574432,4401.0,4398.5,3.2078]
[1756548920210,3.2078,4402.4,4400.9,3.2078]
[1756548920402,3.2078,4402.4,4399.6,1.6187415]
[1756548920403,0.2002,4402.3,4401.7,3.2078]
[1756548920605,0.2858,4402.1,4401.7,3.2078]
[1756548920807,4.22375779,4402.4,4401.7,3.2078]
[1756548921114,1.01595779,4402.4,4401.7,3.2078]
[1756548921510,0.076,4402.7,4401.4,0.234]
[1756548921511,0.2858,4402.7,4402.2,3.2078]
[1756548921810,0.2858,4402.6,4402.2,3.2078]
[1756548922115,0.2858,4402.5,4402.2,3.2078]
[1756548929311,0.2858,4402.4,4402.2,3.2078]
[1756548931220,0.233,4403.0,4402.2,3.2078]
[1756548931520,0.2858,4402.4,4402.2,3.2078]
[1756548932522,0.486,4403.7,4402.3,4.46015]
[1756548932720,0.81575779,4403.6,4403.2,3.2078]
[1756548933215,0.2858,4403.6,4403.2,3.4408]
[1756548933414,0.2858,4404.1,4403.2,3.4408]
[1756548933615,0.2858,4403.5,4403.2,3.4408]
[1756548934115,0.486,4403.9,4403.2,3.4408]
[1756548934422,0.52995779,4403.8,4403.2,3.4408]
[1756548934622,0.486,4403.9,4403.2,3.4408]
[1756548934824,0.52995779,4403.8,4403.2,3.4408]
[1756548935321,0.486,4403.9,4403.2,3.4408]
[1756548935521,1.01595779,4403.9,4403.2,3.4408]
[1756548936118,3.2078,4404.3,4403.2,3.2078]
[1756548936328,0.52995779,4403.9,4403.8,3.2078]
[1756548936820,0.2858,4404.1,4403.8,3.2078]
[1756548937021,0.52995779,4403.9,4403.8,3.2078]
[1756548937522,32.756,4404.4,4403.8,3.2078]
[1756548937721,0.80925779,4403.9,4403.8,3.2078]
[1756548938116,0.2793,4403.9,4403.8,3.2078]
[1756548938521,0.4784,4404.1,4403.8,3.2078]
[1756548938719,0.2793,4403.9,4403.8,3.2078]
[1756548939223,0.4784,4403.9,4403.8,3.2078]
[1756548939721,0.4973,4404.7,4403.8,3.2078]
[1756548939916,0.52995779,4404.0,4403.8,3.2078]
[1756548940122,0.2793,4404.0,4403.8,3.2078]
[1756548942919,0.218,4404.7,4403.8,3.2078]
[1756548943113,32.725,4405.8,4403.8,3.2078]
[1756548943114,0.2793,4403.9,4403.8,3.2078]
[1756548943324,0.1991,4404.3,4403.8,3.2078]
[1756548943522,0.1991,4404.2,4403.9,0.233]
[1756548943723,0.2793,4404.1,4403.9,0.233]
[1756548943926,0.52995779,4404.2,4403.8,3.2078]
[1756548944119,0.4784,4404.1,4404.0,0.233]
[1756548944620,0.2793,4405.2,4404.0,0.233]
[1756548944923,0.2793,4404.2,4404.0,0.233]
[1756548945123,0.52995779,4404.3,4404.1,3.2078]
[1756548945427,0.2793,4404.9,4404.2,0.233]
[1756548945618,0.80925779,4404.9,4404.7,3.2078]
[1756548945825,0.2793,4404.9,4404.7,3.2078]
[1756548946125,35.9328,4405.8,4404.7,3.2078]
[1756548946330,0.2793,4405.2,4404.8,0.233]
[1756548946922,0.2793,4405.7,4404.8,0.233]
[1756548947123,1.00835779,4405.3,4405.2,3.2078]
[1756548947324,1.52718177,4405.3,4405.2,3.2078]
[1756548947520,1.9404836,4405.3,4405.2,3.2078]
[1756548948918,1.52718177,4405.3,4405.2,3.2078]
[1756548949421,0.99722398,4405.3,4405.2,3.2078]
[1756548949617,0.79812398,4405.3,4405.2,3.2078]
[1756548950026,0.1991,4404.9,4404.8,0.233]
[1756548950226,0.4784,4404.9,4404.8,0.233]
[1756548950418,0.51882398,4404.9,4404.8,0.233]
[1756548950620,0.79812398,4405.2,4404.8,0.233]
[1756548950820,0.79812398,4405.1,4404.8,0.233]
[1756548951028,0.51882398,4405.0,4404.8,0.233]
[1756548951627,0.4784,4404.8,4404.7,3.2078]
[1756548951927,0.51882398,4404.8,4404.7,3.4408]
[1756548952328,0.51882398,4405.1,4404.7,3.4408]
[1756548952530,0.51882398,4405.0,4404.7,3.4408]
[1756548952732,0.51882398,4404.9,4404.7,3.4408]
[1756548953030,0.51882398,4404.8,4404.7,3.4408]
[1756548953230,0.51882398,4405.1,4404.7,3.4408]
[1756548953428,0.51882398,4405.0,4404.7,3.4408]
[1756548953627,0.79812398,4405.0,4404.7,3.4408]
[1756548953828,0.51882398,4404.9,4404.7,3.4408]
[1756548954330,0.2793,4405.4,4404.7,3.4408]
[1756548954331,0.51882398,4404.8,4404.7,3.4408]
[1756548954727,0.51882398,4405.2,4404.7,3.4408]
[1756548954927,0.51882398,4405.1,4404.7,3.4408]
[1756548955128,0.51882398,4405.0,4404.7,3.4408]
[1756548955423,0.51882398,4404.9,4404.7,3.4408]
[1756548955623,0.51882398,4404.8,4404.7,3.4408]
[1756548955828,0.51882398,4405.1,4404.7,3.4408]
[1756548956027,0.2793,4405.0,4404.7,3.4408]
[1756548956233,0.79812398,4404.9,4404.7,3.4408]
[1756548956434,0.51882398,4404.8,4404.7,3.4408]
[1756548957338,0.79812398,4404.8,4404.7,3.4398]
[1756548957725,0.99722398,4404.8,4404.7,3.2078]
[1756548957926,0.99722398,4404.8,4404.7,3.4398]
[1756548958536,1.52718177,4404.8,4404.7,3.4398]
[1756548960733,1.52718177,4404.8,4404.7,3.2078]
[1756548962331,2.75292609,4404.8,4404.7,3.2078]
[1756548964440,1.52718177,4404.8,4404.7,3.2078]
[1756548964942,0.51882398,4404.8,4404.7,3.4398]
[1756548965539,0.51882398,4405.2,4404.7,3.4398]
[1756548965738,0.51882398,4405.1,4404.7,3.4398]
[1756548966537,0.51882398,4405.0,4404.7,3.4398]
[1756548966734,0.51882398,4404.9,4404.7,3.4398]
[1756548966934,0.51882398,4404.8,4404.7,3.4398]
[1756548967329,0.51882398,4405.1,4404.7,8.7478]
[1756548967535,0.51882398,4405.0,4404.7,3.4398]
[1756548967742,0.51882398,4404.9,4404.7,3.4398]
[1756548967930,0.51882398,4404.8,4404.7,3.4398]
[1756548968134,0.51882398,4405.3,4404.7,3.4398]
[1756548968335,0.51882398,4405.3,4405.2,3.2078]
[1756548968640,0.3059,4405.7,4405.2,3.4398]
[1756548968834,0.51882398,4405.6,4405.2,3.4398]
[1756548969436,0.51882398,4405.5,4405.2,3.4398]
[1756548969632,0.51882398,4405.4,4405.2,3.4398]
[1756548969832,1.22574432,4406.3,4405.2,3.4398]
[1756548969833,0.5039,4406.3,4405.3,0.22698]
[1756548970038,0.5039,4406.3,4406.2,3.2078]
[1756548970436,1.55627734,4406.3,4406.2,3.2078]
[1756548971241,0.82831955,4406.3,4406.2,3.2078]
[1756548971441,1.55627734,4406.3,4406.2,3.2078]
[1756548971644,1.55627734,4406.3,4406.2,3.4398]
[1756548974147,1.55627734,4406.3,4406.2,3.2078]
[1756548974342,1.55627734,4406.3,4406.2,3.4398]
[1756548974543,1.35827734,4406.3,4406.2,3.4398]
[1756548974746,1.55627734,4406.3,4406.2,3.4398]
[1756548976742,1.05237734,4406.3,4406.2,3.4398]
[1756548977839,1.35827734,4406.3,4406.2,3.4398]
[1756548978537,0.0059,4406.8,4406.2,3.4398]
[1756548978745,0.0059,4406.8,4406.7,3.2078]
[1756548978940,0.0059,4406.8,4406.7,3.4398]
[1756548979144,0.3059,4406.9,4406.7,3.4398]
[1756548979340,0.3059,4406.9,4406.8,0.232]
[1756548979541,0.5039,4406.8,4406.7,3.2078]
[1756548979741,0.52995779,4406.9,4406.7,3.4398]
[1756548980351,0.198,4407.2,4406.7,3.4398]
[1756548980551,0.52995779,4406.9,4406.7,3.4398]
[1756548980741,0.61130183,4407.4,4406.7,3.4398]
[1756548980942,0.52154762,4407.3,4406.7,3.4398]
[1756548981143,0.3059,4406.9,4406.8,0.232]
[1756548981847,0.5039,4406.8,4406.7,3.2078]
[1756548982151,0.5039,4406.8,4406.7,3.4398]
[1756548982552,0.5039,4406.8,4406.7,3.2078]
[1756548982952,0.5039,4406.8,4406.7,3.4398]
[1756548983153,1.03385779,4406.8,4406.7,3.4398]
[1756548983755,1.03385779,4406.8,4406.7,3.2078]
[1756548983949,1.44715962,4406.8,4406.7,3.2078]
[1756548984144,1.44715962,4406.8,4406.7,3.4398]
[1756548984851,1.44715962,4406.8,4406.7,3.2078]
[1756548995159,1.96921032,4406.8,4406.7,3.2078]
[1756548995559,1.44715962,4406.8,4406.7,3.2078]
[1756548996162,1.96961728,4406.8,4406.7,3.2078]
[1756548996463,0.52245766,4406.8,4406.7,3.2078]
[1756548998966,0.3059,4407.0,4406.7,3.2078]
[1756548999267,0.008,4407.2,4406.7,3.2078]
[1756548999268,0.52304975,4406.9,4406.8,0.231]
[1756548999468,0.94325962,4407.1,4406.8,0.231]
[1756548999769,0.80083033,4407.0,4406.8,0.231]
[1756548999958,0.473,4406.9,4406.7,3.2078]
[1756549000159,1.40935672,4406.8,4406.7,3.4388]
[1756549000365,1.93931451,4406.8,4406.7,3.2078]
[1756549004871,1.52601268,4406.8,4406.7,3.2078]
[1756549005074,1.93931451,4406.8,4406.7,3.2078]
[1756549006063,0.99605489,4406.8,4406.7,3.2078]
[1756549006269,0.52305489,4406.8,4406.7,3.4388]
[1756549007571,0.008,4407.2,4406.7,3.4388]
[1756549007771,0.93674024,4407.1,4406.7,3.4388]
[1756549007977,0.2778,4406.9,4406.7,3.2078]
[1756549008273,0.473,4406.9,4406.8,0.232]
[1756549008470,0.2778,4406.9,4406.8,0.232]
[1756549009474,0.473,4406.9,4406.8,0.232]
[1756549009873,0.008,4407.2,4406.8,0.231]
[1756549010073,1.4666968,4407.1,4406.8,0.231]
[1756549010277,0.52343718,4407.0,4406.8,0.231]
[1756549010477,0.41330183,4407.0,4406.8,0.231]
[1756549011072,0.69110183,4407.0,4406.8,0.231]
[1756549011678,0.2778,4407.0,4406.8,0.231]
[1756549012072,0.2778,4407.9,4406.8,0.231]
[1756549012272,0.80775779,4407.2,4406.8,0.231]
[1756549012575,0.52331605,4407.1,4406.8,0.231]
[1756549012774,0.80775779,4407.2,4406.8,0.231]
[1756549012775,0.69110183,4407.2,4406.8,0.231]
[1756549012974,0.52331605,4407.1,4406.8,0.231]
[1756549013178,0.2778,4407.2,4406.8,0.231]
[1756549013479,0.52328511,4407.1,4406.8,0.231]
[1756549013777,0.2778,4407.2,4406.8,0.231]
[1756549013977,0.71848511,4407.1,4406.8,0.231]
[1756549014177,0.2778,4406.9,4406.8,0.231]
[1756549014880,1.45774432,4408.0,4406.8,0.231]
[1756549015080,1.00295779,4407.3,4407.2,3.2078]
[1756549015273,1.52620003,4407.3,4407.2,3.4388]
[1756549015473,0.99624224,4407.3,4407.2,3.4388]
[1756549015781,0.99624224,4407.3,4407.2,3.2078]
[1756549016177,0.99624224,4407.3,4407.2,3.4388]
[1756549017078,0.80104224,4407.3,4407.2,3.4388]
[1756549017781,0.52324224,4407.3,4407.2,3.4388]
[1756549019480,0.0084,4407.5,4407.2,3.4388]
[1756549019682,0.52318096,4407.4,4407.2,3.4388]
[1756549019879,0.0084,4407.5,4407.2,3.4388]
[1756549020078,0.52318066,4407.4,4407.2,3.4388]
[1756549020281,0.0084,4407.5,4407.2,3.4388]
[1756549020480,0.52319239,4407.4,4407.2,3.4388]
[1756549020681,0.0084,4407.5,4407.2,3.4388]
[1756549020883,0.52319201,4407.4,4407.2,3.4388]
[1756549021082,0.0084,4407.5,4407.2,3.4388]
[1756549022382,0.0084,4407.5,4407.3,0.231]
[1756549022576,0.0084,4407.5,4407.4,0.231]
[1756549022577,0.2862,4407.5,4407.4,0.231]
[1756549022985,0.473,4407.5,4407.4,0.231]
[1756549025487,0.473,4407.5,4407.2,3.2078]
[1756549025488,0.1952,4407.5,4407.2,3.2078]
[1756549025675,0.1952,4407.4,4407.2,3.2078]
[1756549025875,0.1952,4407.4,4407.3,0.231]
[1756549025876,0.473,4407.4,4407.3,0.231]
[1756549026080,0.473,4407.3,4407.2,3.2078]
[1756549026287,0.473,4407.3,4407.2,3.4388]
[1756549026484,0.473,4407.3,4407.2,3.2078]
[1756549026887,0.473,4407.3,4407.2,3.4388]
[1756549027789,0.473,4407.3,4407.2,3.2078]
[1756549027978,0.473,4407.3,4407.2,3.4388]
[1756549028488,0.473,4407.3,4407.2,3.2078]
[1756549028786,0.2778,4407.3,4407.2,3.4388]
[1756549029187,0.4796,4407.3,4407.2,3.4388]
[1756549029383,0.4796,4407.3,4407.2,3.2078]
[1756549029584,0.4796,4407.3,4407.2,3.4388]
[1756549030789,0.4796,4407.3,4407.2,3.2078]
[1756549030991,0.4796,4407.3,4407.2,3.4388]
[1756549031187,0.4796,4407.3,4407.2,3.2078]
[1756549031587,0.4796,4407.3,4407.2,3.4388]
[1756549033387,3.2078,4409.1,4407.2,3.4388]
[1756549033388,0.2995,4409.1,4407.2,7.6657]
[1756549033588,0.5013,4408.9,4408.8,3.2078]
[1756549033794,0.5013,4408.9,4408.8,3.4388]
[1756549033982,0.5013,4408.9,4408.8,3.2078]
[1756549034187,0.5013,4408.9,4408.8,3.4388]
[1756549035291,4.5013,4408.9,4408.8,3.2078]
[1756549035497,1.02185237,4408.9,4408.8,3.2078]
[1756549036098,5.02185237,4408.9,4408.8,3.2078]
[1756549036994,5.24867238,4408.9,4408.2,3.2078]
[1756549037200,0.5013,4408.3,4408.2,3.2078]
[1756549037395,0.91460183,4408.3,4408.2,3.2078]
[1756549037603,1.44455962,4408.3,4408.2,3.2078]
[1756549037902,1.44455962,4408.3,4408.2,3.7016]
[1756549038694,1.44455962,4408.3,4406.1,2.85405491]
[1756549038695,0.2018,4407.8,4407.7,3.2078]
[1756549038896,0.5013,4407.8,4407.7,3.7016]
[1756549039098,1.44455962,4407.8,4407.7,3.7016]
[1756549042101,1.44455962,4407.8,4407.7,3.3972]
[1756549042607,1.44455962,4407.8,4407.7,3.7016]
[1756549042808,3.2078,4408.8,4407.7,3.7016]
[1756549043003,0.52995779,4407.8,4407.7,3.6292]
[1756549043206,0.52995779,4407.8,4407.7,3.9336]
[1756549043406,0.2018,4407.9,4407.8,0.3044]
[1756549043604,0.5013,4407.8,4407.7,3.3972]
[1756549043807,1.44455962,4407.8,4407.7,3.2078]
[1756549044803,1.44455962,4407.8,4407.7,3.7016]
[1756549045213,1.24275962,4407.8,4407.7,3.7016]
[1756549045409,0.2995,4408.7,4407.8,0.3044]
[1756549045705,0.52995779,4408.0,4407.9,0.4938]
[1756549046011,1.05092009,4408.0,4407.9,0.4938]
[1756549046213,0.93426413,4408.0,4407.9,0.4938]
[1756549046811,0.5209623,4408.0,4407.9,0.4938]
[1756549049413,1.0222623,4408.0,4407.9,0.4938]
[1756549050014,0.5209623,4408.0,4407.9,0.4938]
[1756549050210,0.2995,4408.3,4408.2,0.1894]
[1756549050415,0.2995,4408.3,4408.2,3.9336]
[1756549050618,0.82134291,4408.3,4408.2,3.9336]
[1756549050817,0.52184291,4408.3,4408.2,3.9336]
[1756549051314,1.23184432,4409.1,4408.2,3.6292]
[1756549051315,0.0061,4409.1,4408.2,3.6292]
[1756549051520,0.52995779,4408.9,4408.8,0.4938]
[1756549051814,0.5213643,4408.9,4408.8,0.7258]
[1756549052414,0.0061,4409.1,4408.9,0.3044]
[1756549052713,0.0061,4409.1,4409.0,0.7258]
[1756549053213,3.2078,4410.5,4409.1,0.3044]
[1756549053214,0.2995,4409.8,4409.1,0.3044]
[1756549053414,3.2078,4410.5,4408.1,40.8]
[1756549053415,0.5013,4409.5,4409.4,3.7016]
[1756549053614,0.5013,4409.5,4409.4,3.9336]
[1756549053819,0.91460183,4409.5,4409.4,3.9336]
[1756549054019,1.44455962,4409.5,4409.4,3.7016]
[1756549054320,0.5013,4409.5,4409.4,3.9336]
[1756549054512,0.91460183,4409.5,4409.4,3.7016]
[1756549054723,1.14505962,4409.5,4408.9,3.2078]
[1756549055021,0.5013,4409.0,4408.9,3.2078]
[1756549055216,0.5013,4409.0,4408.9,3.9336]
[1756549055217,1.03125779,4409.0,4408.9,3.9336]
[1756549055410,1.03125779,4409.0,4408.9,3.7016]
[1756549055615,1.03125779,4409.0,4408.9,3.9336]
[1756549057423,1.03125779,4409.0,4408.9,3.7016]
[1756549057625,1.44455962,4409.0,4408.9,3.2078]
[1756549057822,5.44455962,4409.0,4408.9,3.2078]
[1756549058022,5.44455962,4409.0,4408.4,0.232]
[1756549058323,0.4889,4408.6,4408.5,0.7224]
[1756549058822,0.2846,4408.6,4408.5,0.7224]
[1756549059022,0.2846,4409.1,4408.5,0.232]
[1756549059223,0.90220183,4409.0,4408.9,0.4904]
[1756549059425,0.4889,4409.0,4408.9,0.4904]
[1756549059619,0.90220183,4409.0,4408.9,0.4904]
[1756549059822,1.43215962,4409.0,4408.9,0.4904]
[1756549060021,0.1376,4409.2,4408.9,0.7224]
[1756549060223,0.94325962,4409.1,4408.9,0.4362]
[1756549060426,0.94325962,4409.1,4409.0,0.4904]
[1756549060427,1.43215962,4409.1,4409.0,0.4904]
[1756549060730,0.4889,4409.1,4409.0,0.4904]
[1756549061527,0.1376,4409.2,4409.1,0.4904]
[1756549061727,0.1376,4409.2,4409.1,3.6982]
[1756549062130,0.2846,4409.9,4409.2,0.2862]
[1756549062330,0.2846,4409.9,4409.3,0.7224]
[1756549062331,0.52995779,4409.4,4409.3,0.7224]
[1756549062724,0.2043,4409.5,4409.4,0.4904]
[1756549063024,0.4889,4409.2,4409.1,3.2078]
[1756549063228,1.01885779,4409.2,4409.1,3.4398]
[1756549063425,0.4889,4409.2,4409.1,3.4398]
[1756549063626,0.4889,4409.2,4409.1,3.644]
[1756549063826,0.4889,4409.2,4409.1,3.9302]
[1756549064927,0.4889,4409.2,4409.1,3.412]
[1756549065130,0.4889,4409.2,4409.1,3.644]
[1756549065325,0.4889,4409.2,4409.1,3.2078]
[1756549066228,0.4889,4409.2,4409.1,3.412]
[1756549067826,0.4889,4409.2,4409.1,3.6982]
[1756549068831,0.135,4409.4,4409.1,3.6982]
[1756549068832,0.135,4409.4,4409.3,0.4904]
[1756549069032,0.6239,4409.4,4409.3,0.4904]
[1756549069626,0.4889,4409.4,4409.3,0.4904]
[1756549071134,0.4889,4409.4,4409.3,0.7224]
[1756549071733,0.2043,4409.4,4409.3,0.7224]
[1756549073039,0.2846,4409.6,4409.3,0.7224]
[1756549073336,0.52995779,4409.4,4409.3,0.7224]
[1756549073635,0.81455779,4409.4,4409.3,0.7224]
[1756549073838,0.4889,4409.4,4409.3,0.7224]
[1756549074435,0.4889,4409.4,4409.3,0.4904]
[1756549074637,0.4889,4409.4,4409.3,0.7224]
[1756549074837,0.4889,4409.4,4409.3,0.4904]
[1756549075138,0.4889,4409.4,4409.3,0.7224]
[1756549075331,0.4889,4409.2,4409.1,3.4398]
[1756549075530,0.4889,4409.2,4409.1,3.644]
[1756549075733,0.4889,4409.2,4409.1,3.9302]
[1756549076639,0.1341,4409.6,4409.2,0.2862]
[1756549076836,0.41330183,4409.5,4409.2,0.232]
[1756549077041,0.73425779,4409.3,4409.2,0.7224]
[1756549077244,1.01885779,4409.3,4409.2,0.7224]
[1756549077440,0.94325962,4409.3,4409.2,0.7224]
[1756549077743,1.43215962,4409.3,4409.2,0.7224]
[1756549078639,1.43215962,4409.3,4409.2,0.4904]
[1756549078840,1.43215962,4409.3,4409.2,0.4362]
[1756549079642,1.43215962,4409.3,4409.2,0.2042]
[1756549080042,1.43215962,4409.3,4409.2,0.4904]
[1756549080442,1.95276121,4409.3,4409.2,0.4904]
[1756549082847,1.95276121,4409.3,4409.2,0.2042]
[1756549083441,1.95276121,4409.3,4409.1,3.2078]
[1756549083747,1.43215962,4409.2,4409.1,3.4388]
[1756549083950,1.01885779,4409.2,4409.1,3.4388]
[1756549084246,0.4889,4409.2,4409.1,3.9292]
[1756549084440,0.4889,4409.2,4409.1,3.4388]
[1756549085044,1.0045551,4409.2,4409.1,3.4388]
[1756549085749,1.0045551,4409.2,4409.1,3.2078]
[1756549085952,1.0045551,4409.2,4408.9,0.231]
[1756549086250,0.4889,4408.7,4408.6,0.4904]
[1756549086450,0.4889,4408.7,4408.6,5.7984]
[1756549086750,0.4889,4408.7,4406.6,32.69]
[1756549086751,0.4889,4408.2,4408.1,0.4904]
[1756549086945,0.4889,4408.2,4408.1,0.7214]
[1756549087244,0.3042,4408.5,4408.1,0.7214]
[1756549087446,0.83415779,4408.3,4408.2,0.7385]
[1756549087752,1.02495779,4408.3,4408.2,0.7385]
[1756549087951,0.90830183,4408.3,4408.2,0.7385]
[1756549088647,1.42389334,4408.3,4408.2,0.5075]
[1756549088843,0.495,4408.1,4408.0,3.2078]
[1756549089051,0.3042,4408.0,4407.4,3.5146]
[1756549089251,0.495,4407.5,4407.4,3.7153]
[1756549089553,0.52995779,4407.5,4407.4,3.7153]
[1756549089851,0.41330183,4407.5,4407.4,3.7153]
[1756549090250,0.71750183,4407.5,4407.4,3.7153]
[1756549091148,0.90830183,4407.5,4407.4,3.7153]
[1756549091553,1.43825962,4407.5,4407.4,3.2078]
[1756549092144,1.9530395,4407.5,4407.4,3.2078]
[1756549093948,0.1908,4407.0,4406.9,3.2078]
[1756549094257,1.43825962,4407.0,4406.9,3.7153]
[1756549094948,1.43825962,4407.0,4406.9,3.2078]
[1756549098660,1.43825962,4407.0,4406.9,3.4085]
[1756549100661,1.02495779,4407.0,4406.9,3.4085]
[1756549100967,1.43825962,4407.0,4406.9,3.4085]
[1756549101258,1.43825962,4407.0,4406.9,3.7153]
[1756549102761,0.90830183,4407.0,4406.9,3.7153]
[1756549102964,1.43825962,4407.0,4406.9,3.7153]
[1756549105261,1.02495779,4407.0,4406.9,3.7153]
[1756549105462,1.43825962,4407.0,4406.9,3.7153]
[1756549106355,1.43825962,4407.0,4406.9,3.4085]
[1756549107164,1.43825962,4407.0,4406.9,3.7153]
[1756549108960,0.94325962,4407.0,4406.9,3.7153]
[1756549109163,3.2078,4407.9,4406.9,3.7153]
[1756549109164,3.2078,4407.9,4407.1,0.2007]
[1756549109364,0.41330183,4407.8,4407.7,0.3566]
[1756549110068,0.71750183,4407.8,4407.7,0.3566]
[1756549111969,0.90830183,4407.8,4407.7,0.3566]
[1756549114071,0.41330183,4407.8,4407.7,0.3566]
[1756549114272,0.90830183,4407.8,4407.7,0.3566]
[1756549116079,0.41330183,4407.8,4407.7,0.3566]
[1756549116281,0.3042,4408.1,4407.8,0.1559]
[1756549116481,0.41330183,4408.0,4407.9,0.3566]
[1756549116671,0.3042,4408.1,4408.0,0.1559]
[1756549116872,0.1257,4408.6,4408.0,0.1559]
[1756549116873,0.3042,4408.5,4408.1,0.1559]
[1756549117078,0.72075779,4408.2,4408.1,0.3558]
[1756549117270,1.51875088,4408.2,4408.1,0.3558]
[1756549117476,0.98879309,4408.2,4408.1,0.3558]
[1756549117875,0.98879309,4408.2,4408.1,0.2007]
[1756549118072,0.1926,4407.7,4407.6,5.6666]
[1756549118282,0.473,4407.7,4407.6,5.6666]
[1756549118582,0.2804,4407.7,4407.6,5.6666]
[1756549118785,0.2804,4408.2,4407.7,0.1551]
[1756549118985,1.00295779,4408.0,4407.9,3.5664]
[1756549119181,0.41330183,4408.1,4407.9,3.4113]
[1756549119482,0.2804,4408.6,4408.1,0.1551]
[1756549119677,1.00295779,4408.2,4408.1,0.3586]
[1756549119879,1.93424539,4408.2,4408.1,0.3586]
[1756549120079,0.99098577,4408.2,4408.1,0.3586]
[1756549120478,0.99098577,4408.2,4408.1,0.2035]
[1756549120784,0.99098577,4408.2,4407.9,3.2078]
[1756549121084,0.473,4408.0,4407.9,3.5664]
[1756549122677,0.88630183,4408.0,4407.9,3.5664]
[1756549122876,1.93417664,4408.0,4407.9,3.2078]
[1756549130486,1.93417664,4408.0,4407.5,0.1551]
[1756549130487,1.93417664,4408.0,4407.3,3.4398]
[1756549130787,1.00295779,4407.7,4407.6,0.3586]
[1756549131286,0.473,4407.7,4407.6,0.3586]
[1756549132377,0.99122709,4407.7,4407.6,0.3586]
[1756549132890,0.51822709,4407.7,4407.6,0.3586]
[1756549133185,0.2804,4408.3,4407.7,0.1551]
[1756549133380,0.52995779,4407.8,4407.7,0.3586]
[1756549133781,0.41330183,4407.8,4407.7,0.2035]
[1756549134183,0.69370183,4407.8,4407.7,0.2035]
[1756549134383,1.21208862,4407.8,4407.7,0.3586]
[1756549134584,0.69370183,4407.8,4407.7,0.3586]
[1756549134784,1.21207583,4407.8,4407.7,0.3586]
[1756549135390,1.40467583,4407.8,4407.7,0.3586]
[1756549138683,1.40467583,4407.8,4407.3,3.2078]
[1756549138884,0.3528,4408.4,4407.3,3.2078]